[Event "*** Titled Tuesday Blitz"]
[Site "Chess.com"]
[Date "2018.11.06"]
[Round "1"]
[White "gmcorrales"]
[Black "poummba"]
[Result "1/2-1/2"]
[WhiteElo "2738"]
[BlackElo "2399"]
[TimeControl "180+2"]
[EndTime "13:03:45 PST"]
[Termination "Game drawn by agreement"]

1. e4 {[%clk 0:03:01.1]} 1... e5 {[%clk 0:02:50.5]} 2. Nf3 {[%clk 0:03:01.7]}
2... Nf6 {[%clk 0:02:51.8]} 3. Nxe5 {[%clk 0:03:02.6]} 3... d6 {[%clk 0:02:53]}
4. Nf3 {[%clk 0:03:03.7]} 4... Nxe4 {[%clk 0:02:54.6]} 5. Nc3 {[%clk 0:03:05.1]}
5... Nxc3 {[%clk 0:02:56]} 6. dxc3 {[%clk 0:03:06.4]} 6... Be7 {[%clk
0:02:57.9]} 7. Be3 {[%clk 0:03:08]} 7... O-O {[%clk 0:02:59.8]} 8. Qd2 {[%clk
0:03:09.2]} 8... Nd7 {[%clk 0:03:01.5]} 9. O-O-O {[%clk 0:03:10.7]} 9... c6
{[%clk 0:03:02.9]} 10. h4 {[%clk 0:03:12]} 10... d5 {[%clk 0:03:04]} 11. h5
{[%clk 0:03:13.6]} 11... Nc5 {[%clk 0:03:02]} 12. h6 {[%clk 0:03:13]} 12... g6
{[%clk 0:02:52.7]} 13. Qd4 {[%clk 0:03:13.8]} 13... Ne6 {[%clk 0:02:53.8]} 14.
Qe5 {[%clk 0:03:14.6]} 14... Bf6 {[%clk 0:02:44.5]} 15. Qg3 {[%clk 0:03:15.2]}
15... Qa5 {[%clk 0:02:27.3]} 16. Kb1 {[%clk 0:03:15.5]} 16... Nc5 {[%clk
0:02:26.1]} 17. Bd4 {[%clk 0:03:06]} 17... Ne4 {[%clk 0:02:22.5]} 18. Qf4 {[%clk
0:03:07.1]} 18... Bxd4 {[%clk 0:02:06.1]} 19. Nxd4 {[%clk 0:03:07.9]} 19... Qb6
{[%clk 0:01:46.3]} 20. Ka1 {[%clk 0:03:07.1]} 20... c5 {[%clk 0:01:35.9]} 21.
Nb3 {[%clk 0:03:05.1]} 21... Qf6 {[%clk 0:01:28]} 22. Qxf6 {[%clk 0:03:06.1]}
22... Nxf6 {[%clk 0:01:25.9]} 23. Nxc5 {[%clk 0:03:07.6]} 23... b6 {[%clk
0:01:10.3]} 1/2-1/2

[Event "*** Titled Tuesday Blitz"]
[Site "Chess.com"]
[Date "2018.11.06"]
[Round "1"]
[White "santosalberto1987"]
[Black "vugarrasulov"]
[Result "0-1"]
[WhiteElo "2401"]
[BlackElo "2774"]
[TimeControl "180+2"]
[EndTime "13:04:06 PST"]
[Termination "vugarrasulov won by resignation"]

1. d4 {[%clk 0:02:54.9]} 1... Nf6 {[%clk 0:03:00.7]} 2. Nf3 {[%clk 0:02:55.7]}
2... e6 {[%clk 0:03:01.7]} 3. c4 {[%clk 0:02:56.6]} 3... b6 {[%clk 0:03:02.4]}
4. g3 {[%clk 0:02:56.9]} 4... Ba6 {[%clk 0:03:03.2]} 5. b3 {[%clk 0:02:56.5]}
5... b5 {[%clk 0:03:03.9]} 6. cxb5 {[%clk 0:02:50.7]} 6... Bxb5 {[%clk
0:03:05.8]} 7. Bg2 {[%clk 0:02:51.9]} 7... d5 {[%clk 0:03:06.4]} 8. O-O {[%clk
0:02:52.8]} 8... Ba6 {[%clk 0:03:05.8]} 9. Ne5 {[%clk 0:02:52.5]} 9... Bd6
{[%clk 0:03:04.9]} 10. Ba3 {[%clk 0:02:52.9]} 10... O-O {[%clk 0:03:05.3]} 11.
Bxd6 {[%clk 0:02:52.3]} 11... cxd6 {[%clk 0:03:05.2]} 12. Nf3 {[%clk 0:02:48.1]}
12... Nc6 {[%clk 0:03:05.2]} 13. Nc3 {[%clk 0:02:46.5]} 13... Ne4 {[%clk
0:03:05.1]} 14. Rc1 {[%clk 0:02:26.4]} 14... Rc8 {[%clk 0:03:05.7]} 15. Re1
{[%clk 0:02:19.1]} 15... Nb4 {[%clk 0:02:55.8]} 16. Nxe4 {[%clk 0:02:10.6]}
16... dxe4 {[%clk 0:02:57.3]} 17. Rxc8 {[%clk 0:02:12.3]} 17... Qxc8 {[%clk
0:02:58.8]} 18. Ng5 {[%clk 0:02:13.3]} 18... d5 {[%clk 0:03:00]} 19. a3 {[%clk
0:02:11]} 19... Nc2 {[%clk 0:02:56.6]} 20. Rf1 {[%clk 0:02:10.7]} 20... Qc3
{[%clk 0:02:57.5]} 21. Nh3 {[%clk 0:01:21.5]} 21... Nxd4 {[%clk 0:02:55.8]} 22.
Re1 {[%clk 0:01:21.6]} 22... Rc8 {[%clk 0:02:48.4]} 23. e3 {[%clk 0:01:16.8]}
23... Nc2 {[%clk 0:02:41.7]} 0-1

[Event "*** Titled Tuesday Blitz"]
[Site "Chess.com"]
[Date "2018.11.06"]
[Round "1"]
[White "sergoy"]
[Black "matiss90"]
[Result "0-1"]
[WhiteElo "2748"]
[BlackElo "2419"]
[TimeControl "180+2"]
[EndTime "13:04:13 PST"]
[Termination "matiss90 won by resignation"]

1. d4 {[%clk 0:03:00.5]} 1... Nf6 {[%clk 0:03:00.6]} 2. Nf3 {[%clk 0:03:01.6]}
2... g6 {[%clk 0:03:01.5]} 3. c4 {[%clk 0:03:03]} 3... Bg7 {[%clk 0:03:02.6]} 4.
g3 {[%clk 0:03:04.5]} 4... O-O {[%clk 0:03:03.8]} 5. Bg2 {[%clk 0:03:06]} 5...
d6 {[%clk 0:03:05.1]} 6. O-O {[%clk 0:03:07.1]} 6... a6 {[%clk 0:03:06.5]} 7.
Nc3 {[%clk 0:03:07.5]} 7... Nc6 {[%clk 0:03:07.9]} 8. Bf4 {[%clk 0:03:09.1]}
8... Rb8 {[%clk 0:03:05.9]} 9. Rc1 {[%clk 0:03:09.5]} 9... e6 {[%clk 0:03:06.3]}
10. Qd2 {[%clk 0:03:09.3]} 10... Ne7 {[%clk 0:03:07.5]} 11. Bh6 {[%clk
0:03:09.7]} 11... b5 {[%clk 0:02:50.2]} 12. Bxg7 {[%clk 0:03:09.2]} 12... Kxg7
{[%clk 0:02:51]} 13. cxb5 {[%clk 0:03:09.3]} 13... axb5 {[%clk 0:02:52.9]} 14.
a3 {[%clk 0:03:10.9]} 14... Ned5 {[%clk 0:02:49]} 15. Nxd5 {[%clk 0:03:06]}
15... exd5 {[%clk 0:02:50]} 16. Qb4 {[%clk 0:03:05.3]} 16... Re8 {[%clk
0:02:47.9]} 17. e3 {[%clk 0:03:06.1]} 17... Bd7 {[%clk 0:02:42.7]} 18. Rc2
{[%clk 0:03:04.7]} 18... Ne4 {[%clk 0:02:22.2]} 19. Rfc1 {[%clk 0:03:04.4]}
19... c5 {[%clk 0:01:54.9]} 20. dxc5 {[%clk 0:03:04.4]} 20... dxc5 {[%clk
0:01:56.8]} 21. Qe1 {[%clk 0:03:05.8]} 21... Bf5 {[%clk 0:01:47.5]} 22. Nd2
{[%clk 0:03:06.8]} 22... c4 {[%clk 0:01:47.1]} 23. Nxe4 {[%clk 0:03:07.9]} 23...
Bxe4 {[%clk 0:01:48.1]} 24. Bxe4 {[%clk 0:03:09]} 24... Rxe4 {[%clk 0:01:48.3]}
25. Rd1 {[%clk 0:02:57.9]} 25... d4 {[%clk 0:01:46.1]} 26. Rxd4 {[%clk
0:02:54.9]} 26... Qxd4 {[%clk 0:01:44.5]} 27. Rd2 {[%clk 0:02:31.8]} 27... Qf6
{[%clk 0:01:40.4]} 28. Qd1 {[%clk 0:02:32.6]} 28... Ree8 {[%clk 0:01:39.5]} 0-1

[Event "*** Titled Tuesday Blitz"]
[Site "Chess.com"]
[Date "2018.11.06"]
[Round "1"]
[White "INDIAN-ELEPHANT"]
[Black "sere99"]
[Result "1-0"]
[WhiteElo "2658"]
[BlackElo "2309"]
[TimeControl "180+2"]
[EndTime "13:04:16 PST"]
[Termination "INDIAN-ELEPHANT won by resignation"]

1. d4 {[%clk 0:03:00.6]} 1... d5 {[%clk 0:02:58.6]} 2. Nf3 {[%clk 0:03:00.8]}
2... Nf6 {[%clk 0:02:53.5]} 3. c4 {[%clk 0:03:01.5]} 3... e6 {[%clk 0:02:51.9]}
4. g3 {[%clk 0:02:59.7]} 4... Bb4+ {[%clk 0:02:52]} 5. Bd2 {[%clk 0:03:00.3]}
5... Be7 {[%clk 0:02:53.6]} 6. Bg2 {[%clk 0:03:01.2]} 6... O-O {[%clk
0:02:55.1]} 7. O-O {[%clk 0:03:01.3]} 7... c6 {[%clk 0:02:57]} 8. Qc2 {[%clk
0:03:01.9]} 8... b6 {[%clk 0:02:58.6]} 9. Bf4 {[%clk 0:02:59.7]} 9... Ba6 {[%clk
0:02:59.6]} 10. Ne5 {[%clk 0:02:59.6]} 10... Nfd7 {[%clk 0:02:59.7]} 11. cxd5
{[%clk 0:02:35.7]} 11... cxd5 {[%clk 0:02:47]} 12. Nc3 {[%clk 0:02:36.5]} 12...
Qc8 {[%clk 0:02:10.3]} 13. Rfc1 {[%clk 0:02:25]} 13... Qb7 {[%clk 0:02:10.9]}
14. e4 {[%clk 0:02:21.9]} 14... Nf6 {[%clk 0:02:06.4]} 15. exd5 {[%clk
0:02:22.1]} 15... Nxd5 {[%clk 0:02:07.6]} 16. Nxd5 {[%clk 0:02:22.6]} 16... exd5
{[%clk 0:02:07.5]} 17. Qb3 {[%clk 0:02:14.6]} 17... Rd8 {[%clk 0:02:01.4]} 18.
Nxf7 {[%clk 0:02:14.3]} 18... Kxf7 {[%clk 0:01:46.9]} 19. Rc7 {[%clk 0:02:14.1]}
19... Bc4 {[%clk 0:01:48.8]} 20. Qxc4 {[%clk 0:01:51.7]} 20... dxc4 {[%clk
0:01:45.6]} 21. Bxb7 {[%clk 0:01:52.1]} 1-0

[Event "*** Titled Tuesday Blitz"]
[Site "Chess.com"]
[Date "2018.11.06"]
[Round "1"]
[White "jcibarra"]
[Black "JSMastropiero"]
[Result "1-0"]
[WhiteElo "2644"]
[BlackElo "2301"]
[TimeControl "180+2"]
[EndTime "13:04:27 PST"]
[Termination "jcibarra won by resignation"]

1. Nf3 {[%clk 0:03:00.2]} 1... c5 {[%clk 0:03:00.1]} 2. e4 {[%clk 0:03:00.4]}
2... g6 {[%clk 0:03:00.5]} 3. d4 {[%clk 0:03:00.9]} 3... cxd4 {[%clk 0:03:01.3]}
4. Nxd4 {[%clk 0:03:02.8]} 4... Nc6 {[%clk 0:03:00.9]} 5. Nc3 {[%clk 0:03:03.3]}
5... Bg7 {[%clk 0:03:01.3]} 6. Be3 {[%clk 0:03:04.3]} 6... Nf6 {[%clk
0:03:02.5]} 7. Bc4 {[%clk 0:03:05]} 7... Qa5 {[%clk 0:03:03.8]} 8. O-O {[%clk
0:03:05.3]} 8... O-O {[%clk 0:03:04.3]} 9. Bb3 {[%clk 0:03:05.6]} 9... d6 {[%clk
0:03:04.2]} 10. Nd5 {[%clk 0:03:06.4]} 10... Nxd5 {[%clk 0:02:46.1]} 11. exd5
{[%clk 0:03:07.1]} 11... Nxd4 {[%clk 0:02:40.8]} 12. Bxd4 {[%clk 0:03:07.5]}
12... Bxd4 {[%clk 0:02:33]} 13. Qxd4 {[%clk 0:03:09.4]} 13... Bd7 {[%clk
0:02:33.9]} 14. Rfe1 {[%clk 0:03:08.2]} 14... Rfe8 {[%clk 0:02:34.1]} 15. Re3
{[%clk 0:03:06.5]} 15... f6 {[%clk 0:02:27.5]} 16. Rae1 {[%clk 0:03:06.4]} 16...
Kf8 {[%clk 0:02:28]} 17. c3 {[%clk 0:02:42]} 17... Qd8 {[%clk 0:01:44.4]} 18. h4
{[%clk 0:02:14.5]} 18... a5 {[%clk 0:01:39]} 19. Bc2 {[%clk 0:02:08.9]} 19...
Qc8 {[%clk 0:01:17]} 20. Rxe7 {[%clk 0:02:03.3]} 20... Qc5 {[%clk 0:01:06.8]}
21. Qxf6+ {[%clk 0:02:01.5]} 1-0

[Event "*** Titled Tuesday Blitz"]
[Site "Chess.com"]
[Date "2018.11.06"]
[Round "1"]
[White "Zq1"]
[Black "Morshynska"]
[Result "0-1"]
[WhiteElo "2488"]
[BlackElo "2070"]
[TimeControl "180+2"]
[EndTime "13:04:36 PST"]
[Termination "Morshynska won by resignation"]

1. d4 {[%clk 0:02:50.7]} 1... Nf6 {[%clk 0:03:00.1]} 2. c4 {[%clk 0:02:50.4]}
2... e6 {[%clk 0:03:00.9]} 3. g3 {[%clk 0:02:49.8]} 3... Bb4+ {[%clk 0:03:00.4]}
4. Nd2 {[%clk 0:02:49.9]} 4... c5 {[%clk 0:02:57]} 5. a3 {[%clk 0:02:48.9]} 5...
Bxd2+ {[%clk 0:02:57.5]} 6. Qxd2 {[%clk 0:02:49.8]} 6... cxd4 {[%clk 0:02:59.4]}
7. Nf3 {[%clk 0:02:50.3]} 7... b6 {[%clk 0:02:59.7]} 8. Bg2 {[%clk 0:02:44.3]}
8... Bb7 {[%clk 0:03:00.2]} 9. Qxd4 {[%clk 0:02:37.1]} 9... Nc6 {[%clk 0:02:57]}
10. Qf4 {[%clk 0:02:36.3]} 10... O-O {[%clk 0:02:51.7]} 11. O-O {[%clk
0:02:36.1]} 11... Ne7 {[%clk 0:02:18.4]} 12. Rd1 {[%clk 0:02:31.5]} 12... Rc8
{[%clk 0:02:03.3]} 13. b3 {[%clk 0:02:31.1]} 13... d5 {[%clk 0:01:54]} 14. Bb2
{[%clk 0:02:29.3]} 14... Ng6 {[%clk 0:01:48.1]} 15. Qe3 {[%clk 0:02:24.7]} 15...
Qe7 {[%clk 0:01:44.9]} 16. cxd5 {[%clk 0:01:39]} 16... Bxd5 {[%clk 0:01:33.2]}
17. Ne5 {[%clk 0:01:32.2]} 17... Nxe5 {[%clk 0:01:29.7]} 18. Bf3 {[%clk
0:01:22.3]} 18... Nxf3+ {[%clk 0:01:27.2]} 0-1

[Event "*** Titled Tuesday Blitz"]
[Site "Chess.com"]
[Date "2018.11.06"]
[Round "1"]
[White "Parthenope"]
[Black "Keaton87"]
[Result "0-1"]
[WhiteElo "1751"]
[BlackElo "2474"]
[TimeControl "180+2"]
[EndTime "13:04:36 PST"]
[Termination "Keaton87 won by resignation"]

1. e4 {[%clk 0:02:54.4]} 1... c5 {[%clk 0:03:00.6]} 2. Nf3 {[%clk 0:02:54.5]}
2... e6 {[%clk 0:03:01.5]} 3. d4 {[%clk 0:02:55.6]} 3... cxd4 {[%clk 0:03:02.4]}
4. Nxd4 {[%clk 0:02:57.1]} 4... a6 {[%clk 0:03:03.8]} 5. Bd3 {[%clk 0:02:57.2]}
5... Bc5 {[%clk 0:03:03.9]} 6. Nb3 {[%clk 0:02:58.3]} 6... Be7 {[%clk
0:03:04.7]} 7. O-O {[%clk 0:02:55.9]} 7... d6 {[%clk 0:02:55.1]} 8. c4 {[%clk
0:02:53.5]} 8... Nf6 {[%clk 0:02:54.1]} 9. Nc3 {[%clk 0:02:54.4]} 9... Qc7
{[%clk 0:02:54.3]} 10. Qe2 {[%clk 0:02:52.3]} 10... Nbd7 {[%clk 0:02:51.9]} 11.
f4 {[%clk 0:02:52.8]} 11... b6 {[%clk 0:02:50.5]} 12. Be3 {[%clk 0:02:45.3]}
12... Bb7 {[%clk 0:02:50.9]} 13. Rac1 {[%clk 0:02:42.2]} 13... O-O {[%clk
0:02:51.8]} 14. g4 {[%clk 0:02:26.3]} 14... g6 {[%clk 0:02:49.5]} 15. g5 {[%clk
0:02:23.2]} 15... Nh5 {[%clk 0:02:49.8]} 16. Nd1 {[%clk 0:01:55.2]} 16... Rfe8
{[%clk 0:02:49.1]} 17. Nf2 {[%clk 0:01:55.8]} 17... Bf8 {[%clk 0:02:49.7]} 18.
Ng4 {[%clk 0:01:55.9]} 18... Bg7 {[%clk 0:02:50.8]} 19. Nh6+ {[%clk 0:01:46.2]}
19... Bxh6 {[%clk 0:02:44.1]} 20. gxh6 {[%clk 0:01:46.6]} 20... f5 {[%clk
0:02:45.7]} 21. Bd4 {[%clk 0:01:26.7]} 21... e5 {[%clk 0:02:41.3]} 22. fxe5
{[%clk 0:01:19.8]} 22... dxe5 {[%clk 0:02:36.4]} 23. Bc3 {[%clk 0:01:17.2]}
23... Nc5 {[%clk 0:02:27.7]} 24. Nxc5 {[%clk 0:01:02]} 24... Qxc5+ {[%clk
0:02:28.4]} 25. Kh1 {[%clk 0:01:02.1]} 25... Nf4 {[%clk 0:02:28.8]} 26. Qf3
{[%clk 0:00:55.1]} 26... Nxd3 {[%clk 0:02:28.4]} 0-1

[Event "*** Titled Tuesday Blitz"]
[Site "Chess.com"]
[Date "2018.11.06"]
[Round "1"]
[White "xpto15"]
[Black "lucasmito"]
[Result "0-1"]
[WhiteElo "1270"]
[BlackElo "2473"]
[TimeControl "180+2"]
[EndTime "13:04:43 PST"]
[Termination "lucasmito won by resignation"]

1. e4 {[%clk 0:03:00.2]} 1... c5 {[%clk 0:03:00.8]} 2. Nf3 {[%clk 0:03:00.1]}
2... d6 {[%clk 0:03:00.9]} 3. d4 {[%clk 0:03:01.3]} 3... cxd4 {[%clk 0:03:02.8]}
4. Nxd4 {[%clk 0:03:03.2]} 4... Nf6 {[%clk 0:03:03.6]} 5. Nc3 {[%clk 0:03:04.4]}
5... g6 {[%clk 0:03:03]} 6. Be3 {[%clk 0:03:05.5]} 6... Bg7 {[%clk 0:03:00.3]}
7. f3 {[%clk 0:03:06.9]} 7... O-O {[%clk 0:02:56.3]} 8. Qd2 {[%clk 0:03:07.8]}
8... Nc6 {[%clk 0:02:53.6]} 9. O-O-O {[%clk 0:03:08.8]} 9... d5 {[%clk
0:02:49.2]} 10. Kb1 {[%clk 0:03:05.7]} 10... Nxd4 {[%clk 0:02:47.6]} 11. e5
{[%clk 0:03:06]} 11... Nd7 {[%clk 0:02:47.2]} 12. Bxd4 {[%clk 0:03:02.5]} 12...
Nxe5 {[%clk 0:02:43.2]} 13. Qe1 {[%clk 0:02:54.3]} 13... Qd6 {[%clk 0:02:40.5]}
14. f4 {[%clk 0:02:54.6]} 14... Nc6 {[%clk 0:02:37.8]} 15. Bxg7 {[%clk 0:02:54]}
15... Kxg7 {[%clk 0:02:39.7]} 16. Nxd5 {[%clk 0:02:53.6]} 16... Bg4 {[%clk
0:02:36.2]} 17. Be2 {[%clk 0:02:51]} 17... Bxe2 {[%clk 0:02:36.5]} 18. Qxe2
{[%clk 0:02:52.9]} 18... Rad8 {[%clk 0:02:37.9]} 19. g3 {[%clk 0:02:38.1]} 19...
e6 {[%clk 0:02:36.1]} 20. Nc3 {[%clk 0:02:35.4]} 20... Qe7 {[%clk 0:02:34.9]}
21. h4 {[%clk 0:02:35.3]} 21... h5 {[%clk 0:02:29.1]} 22. g4 {[%clk 0:02:35.6]}
22... Rxd1+ {[%clk 0:02:26.8]} 23. Qxd1 {[%clk 0:02:37.5]} 23... Rd8 {[%clk
0:02:20.2]} 24. Qg1 {[%clk 0:02:35.1]} 24... hxg4 {[%clk 0:02:19.1]} 25. Qxg4
{[%clk 0:02:32.7]} 25... Qc5 {[%clk 0:02:18.9]} 26. h5 {[%clk 0:02:31.7]} 26...
Rh8 {[%clk 0:02:18.5]} 27. Ne4 {[%clk 0:02:21.3]} 27... Rxh5 {[%clk 0:02:13.7]}
28. Re1 {[%clk 0:01:53.3]} 28... Qe3 {[%clk 0:02:04.8]} 29. Qd1 {[%clk 0:01:48]}
29... Qxf4 {[%clk 0:02:02.6]} 30. Nd6 {[%clk 0:01:38.8]} 30... Rd5 {[%clk
0:02:00.1]} 0-1

[Event "*** Titled Tuesday Blitz"]
[Site "Chess.com"]
[Date "2018.11.06"]
[Round "1"]
[White "SanchezKelvin"]
[Black "Andreikka"]
[Result "0-1"]
[WhiteElo "2450"]
[BlackElo "2880"]
[TimeControl "180+2"]
[EndTime "13:05:04 PST"]
[Termination "Andreikka won by resignation"]

1. e4 {[%clk 0:03:00.3]} 1... c6 {[%clk 0:02:59.3]} 2. d4 {[%clk 0:03:01.1]}
2... d5 {[%clk 0:02:59.3]} 3. e5 {[%clk 0:03:02.4]} 3... Bf5 {[%clk 0:02:59.5]}
4. Nc3 {[%clk 0:03:03.4]} 4... e6 {[%clk 0:03:00.6]} 5. g4 {[%clk 0:03:04.2]}
5... Bg6 {[%clk 0:03:02.2]} 6. Nge2 {[%clk 0:03:05]} 6... c5 {[%clk 0:03:00.3]}
7. h4 {[%clk 0:03:04.4]} 7... h6 {[%clk 0:03:00.6]} 8. Be3 {[%clk 0:03:03.3]}
8... cxd4 {[%clk 0:02:58.7]} 9. Nxd4 {[%clk 0:03:04.6]} 9... Ne7 {[%clk
0:03:00.2]} 10. f4 {[%clk 0:03:03]} 10... Nbc6 {[%clk 0:02:52.4]} 11. Qd2 {[%clk
0:03:02.2]} 11... h5 {[%clk 0:02:51.3]} 12. f5 {[%clk 0:03:01.3]} 12... exf5
{[%clk 0:02:51.6]} 13. gxf5 {[%clk 0:03:00.5]} 13... Nxf5 {[%clk 0:02:52.4]} 14.
Nxf5 {[%clk 0:03:00.5]} 14... Bxf5 {[%clk 0:02:53.6]} 15. O-O-O {[%clk
0:02:57.3]} 15... d4 {[%clk 0:02:49.3]} 16. Bxd4 {[%clk 0:02:57.5]} 16... Qxd4
{[%clk 0:02:48.9]} 17. Qxd4 {[%clk 0:02:58.3]} 17... Nxd4 {[%clk 0:02:50.1]} 18.
Rxd4 {[%clk 0:02:59.9]} 18... Bc5 {[%clk 0:02:51.1]} 19. Bb5+ {[%clk 0:03:00.4]}
19... Kf8 {[%clk 0:02:52]} 20. Rd5 {[%clk 0:02:57.7]} 20... Be3+ {[%clk
0:02:50.4]} 21. Kb1 {[%clk 0:02:58.7]} 21... Be6 {[%clk 0:02:47.2]} 22. Rd3
{[%clk 0:02:57.9]} 22... Bf4 {[%clk 0:02:48.4]} 23. Bd7 {[%clk 0:02:56.1]} 23...
Bxe5 {[%clk 0:02:45.3]} 24. Bxe6 {[%clk 0:02:56.9]} 24... fxe6 {[%clk 0:02:46]}
25. Rd7 {[%clk 0:02:57.9]} 25... b6 {[%clk 0:02:36.4]} 26. Rf1+ {[%clk
0:02:56.8]} 26... Kg8 {[%clk 0:02:35.9]} 27. Ne4 {[%clk 0:02:55.7]} 27... Rh6
{[%clk 0:02:31.1]} 28. Ng5 {[%clk 0:02:50.1]} 28... Bf6 {[%clk 0:02:26.4]} 29.
Nxe6 {[%clk 0:02:48.1]} 29... Re8 {[%clk 0:02:26.9]} 30. Nc7 {[%clk 0:02:46]}
30... Re4 {[%clk 0:02:23.8]} 31. Nd5 {[%clk 0:02:45.7]} 31... Bxh4 {[%clk
0:02:23.5]} 32. Rg1 {[%clk 0:02:42.2]} 32... Rg4 {[%clk 0:02:23.5]} 33. Rf1
{[%clk 0:02:35.4]} 33... Re6 {[%clk 0:02:16.8]} 34. a3 {[%clk 0:02:29.8]} 34...
Re1+ {[%clk 0:02:09.5]} 35. Rxe1 {[%clk 0:02:30.3]} 35... Bxe1 {[%clk
0:02:11.4]} 36. Ne7+ {[%clk 0:02:31.2]} 36... Kh7 {[%clk 0:02:12.1]} 37. Nf5
{[%clk 0:02:27.6]} 37... h4 {[%clk 0:02:12]} 38. Rxa7 {[%clk 0:02:24.2]} 38...
h3 {[%clk 0:02:09.6]} 39. Re7 {[%clk 0:02:22.9]} 39... Bf2 {[%clk 0:02:06.3]}
40. Re2 {[%clk 0:02:21.9]} 40... h2 {[%clk 0:02:06.3]} 0-1

[Event "*** Titled Tuesday Blitz"]
[Site "Chess.com"]
[Date "2018.11.06"]
[Round "1"]
[White "narutosmith"]
[Black "HaryKane"]
[Result "0-1"]
[WhiteElo "2213"]
[BlackElo "2573"]
[TimeControl "180+2"]
[EndTime "13:05:04 PST"]
[Termination "HaryKane won by resignation"]

1. e4 {[%clk 0:03:00]} 1... e5 {[%clk 0:03:01]} 2. Nf3 {[%clk 0:03:00.8]} 2...
Nc6 {[%clk 0:03:02.6]} 3. Bb5 {[%clk 0:03:01.9]} 3... a6 {[%clk 0:03:03.9]} 4.
Ba4 {[%clk 0:03:03.4]} 4... Nf6 {[%clk 0:03:05.4]} 5. d3 {[%clk 0:03:04.7]} 5...
b5 {[%clk 0:03:06.8]} 6. Bb3 {[%clk 0:03:05.8]} 6... Bc5 {[%clk 0:03:08.5]} 7.
Nc3 {[%clk 0:03:03.2]} 7... d6 {[%clk 0:03:09.5]} 8. Nd5 {[%clk 0:03:01.6]} 8...
h6 {[%clk 0:03:09]} 9. c3 {[%clk 0:03:01.6]} 9... Bb6 {[%clk 0:03:09]} 10. h3
{[%clk 0:02:52]} 10... Bb7 {[%clk 0:03:03.8]} 11. Nxf6+ {[%clk 0:02:47.7]} 11...
Qxf6 {[%clk 0:03:03.6]} 12. Bd5 {[%clk 0:02:47.8]} 12... Nd8 {[%clk 0:03:00.1]}
13. Bxb7 {[%clk 0:02:47.4]} 13... Nxb7 {[%clk 0:03:02]} 14. a4 {[%clk
0:02:48.5]} 14... O-O {[%clk 0:03:02.1]} 15. g4 {[%clk 0:02:45.8]} 15... Qe6
{[%clk 0:02:43.2]} 16. g5 {[%clk 0:02:43.1]} 16... h5 {[%clk 0:02:43.8]} 17. Be3
{[%clk 0:02:33.4]} 17... Bxe3 {[%clk 0:02:39]} 18. fxe3 {[%clk 0:02:34.1]} 18...
d5 {[%clk 0:02:40.6]} 19. exd5 {[%clk 0:02:26.8]} 19... Qxd5 {[%clk 0:02:42.5]}
20. O-O {[%clk 0:02:26.1]} 20... Rad8 {[%clk 0:02:37.1]} 21. Ne1 {[%clk
0:02:23.7]} 21... g6 {[%clk 0:02:23.7]} 22. Rf6 {[%clk 0:01:58.2]} 22... e4
{[%clk 0:02:20]} 23. h4 {[%clk 0:01:39.8]} 23... exd3 {[%clk 0:02:18]} 24. Qf3
{[%clk 0:01:24]} 24... d2 {[%clk 0:02:12.4]} 25. Ng2 {[%clk 0:00:57.7]} 25...
Qxf3 {[%clk 0:02:03.8]} 26. Rxf3 {[%clk 0:00:58]} 26... d1=Q+ {[%clk 0:02:05.2]}
27. Rxd1 {[%clk 0:00:58.3]} 27... Rxd1+ {[%clk 0:02:07.1]} 0-1

[Event "*** Titled Tuesday Blitz"]
[Site "Chess.com"]
[Date "2018.11.06"]
[Round "1"]
[White "Superfelix"]
[Black "kuli4ik"]
[Result "0-1"]
[WhiteElo "2404"]
[BlackElo "2778"]
[TimeControl "180+2"]
[EndTime "13:05:15 PST"]
[Termination "kuli4ik won by resignation"]

1. e4 {[%clk 0:03:01.7]} 1... e6 {[%clk 0:03:00.3]} 2. d4 {[%clk 0:03:02.3]}
2... d5 {[%clk 0:02:58.3]} 3. Nd2 {[%clk 0:03:03.4]} 3... Nc6 {[%clk 0:02:56]}
4. Ngf3 {[%clk 0:03:02.9]} 4... Nf6 {[%clk 0:02:56.7]} 5. e5 {[%clk 0:03:04.3]}
5... Nd7 {[%clk 0:02:55.7]} 6. c3 {[%clk 0:03:05.6]} 6... f6 {[%clk 0:02:56]} 7.
Bb5 {[%clk 0:03:07.2]} 7... fxe5 {[%clk 0:02:53.5]} 8. dxe5 {[%clk 0:03:07.8]}
8... Be7 {[%clk 0:02:45.8]} 9. Nd4 {[%clk 0:03:06.2]} 9... Nxd4 {[%clk 0:02:46]}
10. cxd4 {[%clk 0:03:06.8]} 10... O-O {[%clk 0:02:46.5]} 11. Bd3 {[%clk
0:03:06.4]} 11... h6 {[%clk 0:02:30]} 12. Nf3 {[%clk 0:02:55.1]} 12... c5 {[%clk
0:02:29.7]} 13. O-O {[%clk 0:02:50.6]} 13... cxd4 {[%clk 0:02:30.2]} 14. Bb1
{[%clk 0:02:46.6]} 14... Rxf3 {[%clk 0:02:22.6]} 15. Qxf3 {[%clk 0:02:46.3]}
15... Nxe5 {[%clk 0:02:23.8]} 16. Qe2 {[%clk 0:02:46.3]} 16... Bf6 {[%clk
0:02:24.3]} 17. f4 {[%clk 0:02:45.5]} 17... d3 {[%clk 0:02:24.1]} 18. Qe3 {[%clk
0:02:37.6]} 18... Ng4 {[%clk 0:02:23.9]} 19. Qxd3 {[%clk 0:02:33.8]} 19... Qb6+
{[%clk 0:02:25]} 20. Kh1 {[%clk 0:02:33.8]} 20... Nf2+ {[%clk 0:02:26.4]} 21.
Rxf2 {[%clk 0:02:35.1]} 21... Qxf2 {[%clk 0:02:27.1]} 22. Be3 {[%clk 0:02:24.4]}
22... Qxb2 {[%clk 0:02:24.9]} 23. Qh7+ {[%clk 0:02:17.3]} 23... Kf7 {[%clk
0:02:22.3]} 24. Qg6+ {[%clk 0:02:12.2]} 24... Ke7 {[%clk 0:02:18.6]} 25. Bc5+
{[%clk 0:02:09.6]} 25... Kd8 {[%clk 0:02:12]} 26. Qf7 {[%clk 0:01:55.5]} 26...
Qc1+ {[%clk 0:02:04.8]} 27. Bg1 {[%clk 0:01:56.1]} 27... Bxa1 {[%clk 0:02:01.4]}
28. Qf8+ {[%clk 0:01:55.9]} 28... Kd7 {[%clk 0:02:00]} 29. Qf7+ {[%clk
0:01:50.4]} 29... Kd6 {[%clk 0:01:53.8]} 30. Qf8+ {[%clk 0:01:48.3]} 30... Kc7
{[%clk 0:01:53.2]} 31. Bd3 {[%clk 0:01:38.7]} 31... Bd4 {[%clk 0:01:47.9]} 32.
Qxg7+ {[%clk 0:01:24]} 32... Bxg7 {[%clk 0:01:47.6]} 0-1